Cogmind - Beta 13 @@@ ROGUE MODE // 2024.06.04 @ 19:51:32 Player: KaiSkiFox Result: Destroyed by as-40835 with Assembled Blade Performance ------------- Evolutions (1) 500 Regions Visited (5) 1000 Robots Destroyed (86) 430 Value Destroyed (1931) 1931 Prototype IDs (6) 120 Alien Tech Used (0) 0 Bonus (24) 24 TOTAL SCORE: 4005 Bonus ------- High Alert Combat Kills 24 Cogmind --------- Core Integrity 0/400 Matter 294/300 Energy 280/280 System Corruption 1% Temperature Warm (165) Movement Treading (160) Location -9/Exiles Parts ------- > --- POWER (1) -------- Heavy Ion Engine > --- PROPULSION (3) --- Light Treads Light Treads Light Treads > --- UTILITY (3) ------ High-capacity Storage Unit Signal Interpreter Hacking Suite > --- WEAPON (2) ------- Improved Medium Laser Improved Medium Laser > --- INVENTORY (20) --- Heavy Ion Engine Light Nuclear Core Light Treads Light Treads Light Treads Heat Sink High-capacity Storage Unit Sensor Array Signal Interpreter Transport Network Coupler Improved Targeting Computer Shield Generator Hacking Suite Hacking Suite Particle Gun Advanced Beam Cannon Heavy Assault Rifle Improved Assault Rifle Mining Laser Peak State ------------ > --- POWER ------------ Heavy Ion Engine > --- PROPULSION ------- Light Treads Light Treads Light Treads > --- UTILITY ---------- High-capacity Storage Unit Signal Interpreter Hacking Suite > --- WEAPON ----------- Improved Medium Laser Improved Medium Laser > --- INVENTORY -------- Improved Ion Engine Light Nuclear Core Light Treads Light Treads Light Treads High-capacity Storage Unit Sensor Array Signal Interpreter Transport Network Coupler Targeting Computer Improved Targeting Computer Weapon Shielding Shield Generator Particle Gun Spread Laser Advanced Beam Cannon Light Assault Rifle Light Assault Rifle Improved Assault Rifle Mining Laser [Rating: 20] Favorites ----------- Power Ion Engine Engine Ion Engine Propulsion Light Treads Treads Light Treads Utility High-capacity Storage Unit Device Heat Sink Storage High-capacity Storage Unit Processor Signal Interpreter Hackware Hacking Suite Protection Light Armor Plating Weapon Assault Rifle Energy Gun Improved Medium Laser Energy Cannon Beam Cannon Ballistic Gun Assault Rifle Launcher Grenade Launcher Special Weapon Mining Laser Build | -11 -10 -10 -9 -9 -9 ------- Run | Yrd Mat Min Mat Min Exi Slots Evolved 2 | . . . 2 . . Power . | . . . . . . Propulsion 1 | . . . 1 . . Utility 1 | . . . 1 . . Weapon . | . . . . . . Parts Attached 64 | 6 7 7 42 . 2 Power 7 | 1 1 . 5 . . Engine 7 | 1 1 . 5 . . Core . | . . . . . . Reactor . | . . . . . . Propulsion 16 | 2 . . 14 . . Treads 16 | 2 . . 14 . . Leg . | . . . . . . Wheel . | . . . . . . Hover . | . . . . . . Flight . | . . . . . . Utility 13 | 1 3 3 4 . 2 Device 2 | . . 1 1 . . Storage 6 | 1 3 . . . 2 Processor 1 | . . 1 . . . Hackware 1 | . . . 1 . . Protection 3 | . . 1 2 . . Artifact . | . . . . . . Weapon 28 | 2 3 4 19 . . Energy Gun 14 | 1 . 1 12 . . Energy Cannon 2 | . . 1 1 . . Ballistic Gun 6 | 1 1 1 3 . . Ballistic Cannon . | . . . . . . Launcher 4 | . 2 . 2 . . Special Weapon 2 | . . 1 1 . . Impact Weapon . | . . . . . . Slashing Weapon . | . . . . . . Piercing Weapon . | . . . . . . Special Melee Weapon . | . . . . . . Unidentified Prototypes 6 | . . 1 5 . . Parts Lost 16 | . 1 1 14 . . Power 1 | . . . 1 . . Propulsion 7 | . . . 7 . . Utility 3 | . . . 3 . . Weapon 5 | . 1 1 3 . . Highest Loss Streak 6 | . 1 1 6 . . To Critical Strikes . | . . . . . . Average Slot Usage (%) 93 | . 85 98 93 100 99 Engine 12 | . 14 14 10 11 11 Treads 28 | . 28 28 29 33 33 Storage 12 | . 14 14 11 11 10 Processor 7 | . . 6 11 11 11 Hackware 1 | . . . 2 11 11 Protection 3 | . . 6 3 . . Energy Gun 10 | . 11 3 15 22 22 Ballistic Gun 9 | . 10 14 5 . . Launcher 1 | . 5 . . . . Special Weapon 3 | . . 9 . . . Naked Turns . | . . . . . . Heaviest Build 69 | 14 69 53 55 54 54 Greatest Support 60 | 40 40 40 60 60 60 Greatest Overweight (x) 16 | . 1 1 16 . . Average Overweight (x) . | . . 1 . . . Largest Inventory Capacity 20 | 8 20 20 20 20 20 Average Capacity 18 | 7 15 20 20 20 19 Most Carried 20 | 2 20 20 20 20 20 Average Carried 16 | 1 13 17 18 20 18 Final Capacity 20 | 8 20 20 20 20 20 Final Carried 20 | 2 19 18 20 20 19 Class Distribution -------------------- 67% | Mutant 32% | Scavenger-Mutant Dominant Class ---------------- Mutant | -10/Materials Mutant | -10/Mines Scavenger-Mutant | -9/Materials Scavenger-Mutant | -9/Mines Scavenger-Mutant | -9/Exiles Resources | -11 -10 -10 -9 -9 -9 ----------- Run | Yrd Mat Min Mat Min Exi Matter Collected 1505 | 192 313 144 846 . 10 Remotely . | . . . . . . Salvage Created 2508 | . 577 183 1734 . 14 Parts 176 | . 54 11 111 . . Haulers Intercepted 7 | . 2 . 5 . . Recyclers Shooed 1 | . . . 1 . . Parts Field Recycled . | . . . . . . Retrieved Matter . | . . . . . . Parts Self-Destructed . | . . . . . . Prevented . | . . . . . . Kills | -11 -10 -10 -9 -9 -9 ------- Run | Yrd Mat Min Mat Min Exi Combat Hostiles Destroyed 58 | . 17 7 33 . 1 Guns 38 | . 8 2 27 . 1 Cannons 2 | . . 2 . . . AOE 17 | . 8 3 6 . . Classes Destroyed 12 | . 8 . 3 . 1 Worker 3 | . 2 . 1 . . Builder 3 | . . . 3 . . Tunneler 1 | . 1 . . . . Hauler 7 | . 2 . 5 . . Recycler 4 | . 1 . 3 . . Operator 5 | . 2 . 3 . . Watcher 6 | . 3 . 3 . . Swarmer 19 | . 9 3 7 . . Grunt 29 | . 8 4 17 . . Duelist 1 | . . . 1 . . Sentry 8 | . . . 8 . . Assembled 1 | . . . . . 1 Best Kill Streak 11 | . 7 3 11 . 1 Combat Bots Only 4 | . 4 3 4 . 1 Max Kills in Single Turn 4 | . 4 2 4 . 1 Gunslinging 1 | . 1 . 1 . . Exploded 3 | . 3 2 2 . . Melee . | . . . . . . Uniques/NPCs Destroyed . | . . . . . . Combat | -11 -10 -10 -9 -9 -9 -------- Run | Yrd Mat Min Mat Min Exi Hostile Shots Fired 308 | . 62 18 209 . 19 Missed 87 | . 17 6 61 . 3 Damage Taken 2994 | . 511 150 2070 . 263 Core 504 | . 65 10 338 . 91 Absorbed by Shields . | . . . . . . Regen/Repaired (Parts) 290 | . 53 . 237 . . Core Remaining (%) 85 | 100 . 70 . . . Volleys Fired 200 | . 42 18 134 . 6 Largest 2 | . 2 2 2 . 2 Hottest 156 | . 80 120 156 . 112 Shots Fired 375 | . 77 35 250 . 13 Gun 334 | . 65 24 232 . 13 Cannon 5 | . . 5 . . . Launcher 31 | . 12 2 17 . . Special 5 | . . 4 1 . . Kinetic 132 | . 31 18 83 . . Thermal 212 | . 34 15 150 . 13 Explosive 31 | . 12 2 17 . . Electromagnetic . | . . . . . . Robot Hit Streak 12 | . 10 11 12 . 3 Robot Miss Streak 6 | . 4 1 6 . 2 Penetration Max . | . . . . . . Secondary Targets 8 | . 2 1 5 . . Max Gunslinging Chain 1 | . 1 1 1 . . Shots Hit Robots 214 | . 42 18 147 . 7 Core Hits 123 | . 34 11 75 . 3 Critical Kills . | . . . . . . Critical Parts Destroyed 2 | . . . 2 . . Critical Strikes 16 | . 4 . 12 . . Burn 14 | . 4 . 10 . . Destroy 2 | . . . 2 . . Melee Attacks . | . . . . . . Impact . | . . . . . . Slashing . | . . . . . . Piercing . | . . . . . . Sneak Attacks . | . . . . . . Combat Hostiles . | . . . . . . Follow-up Attacks . | . . . . . . Damage Inflicted 4429 | . 1134 376 2781 . 138 Guns 2804 | . 412 181 2073 . 138 Cannons 71 | . . 71 . . . Explosions 1546 | . 722 124 700 . . Melee . | . . . . . . Ramming 8 | . . . 8 . . Kinetic 851 | . 160 85 606 . . Thermal 2024 | . 252 167 1467 . 138 Explosive 1546 | . 722 124 700 . . Electromagnetic . | . . . . . . Impact . | . . . . . . Slashing . | . . . . . . Piercing . | . . . . . . Highest Corruption 1 | . 1 1 1 1 1 Average Corruption 1 | . 1 1 1 1 1 Corruption Purged . | . . . . . . Corruption Blocked . | . . . . . . Effects 27 | . 2 17 4 1 3 Message Errors 5 | . 1 4 . . . Matter Fused 5 | . . 3 1 . 1 Heat Flow Errors 5 | . 1 2 2 . . Energy Discharges 3 | . . 3 . . . Data Loss (minor) 5 | . . 4 1 . . Data Loss (major) 3 | . . 1 . 1 1 Misfires 1 | . . . . . 1 Overload Shots . | . . . . . . Overflow Damage 59 | . 59 . . . . Projectiles . | . . . . . . Explosions 59 | . 59 . . . . Melee . | . . . . . . Knockbacks . | . . . . . . Impact . | . . . . . . Kinetic . | . . . . . . Secondary . | . . . . . . Self-Inflicted Damage 180 | . 70 . 110 . . Shots 7 | . 4 . 3 . . Rammed 1 | . . . 1 . . Targets Rammed 1 | . . . 1 . . Kicked . | . . . . . . Crushed . | . . . . . . Highest Temperature 396 | . 252 244 396 . 165 Average Temperature 67 | . 36 78 74 . 67 Received Heat Transfer 780 | . 144 99 537 . . Effects 9 | . . . 9 . . Shutdowns 2 | . . . 2 . . Energy Bleed 1 | . . . 1 . . Interference 5 | . . . 5 . . Damage (minor) 1 | . . . 1 . . Siege Activations . | . . . . . . Robots Corrupted . | . . . . . . Combat Hostiles . | . . . . . . Parts Fried . | . . . . . . Impact Corruptions . | . . . . . . Robots Melted 1 | . 1 . . . . Combat Hostiles 1 | . 1 . . . . Parts Melted 12 | . 3 1 8 . . Heat Transferred 5698 | . 1036 370 3996 . 296 Parts Sabotaged . | . . . . . . Parts Stolen . | . . . . . . Parts Stripped . | . . . . . . Power Chain Reactions . | . . . . . . Alert | -11 -10 -10 -9 -9 -9 ------- Run | Yrd Mat Min Mat Min Exi Peak Influence 524 | . 321 177 524 120 . Initial 120 | . . 25 . 120 . Average 138 | . 94 20 292 120 . Maximum Alert Level 2 | . 1 . 2 . . Low Security (%) 64 | 100 87 100 10 100 . Level 1 32 | . 12 . 80 . . Level 2 3 | . . . 8 . . Level 3 . | . . . . . . Level 4 . | . . . . . . Level 5 . | . . . . . . High Security . | . . . . . . Max Security . | . . . . . . Squads Dispatched 10 | . 4 . 6 . . Investigation 6 | . 3 . 3 . . Extermination . | . . . . . . Reinforcement 4 | . 1 . 3 . . Assault . | . . . . . . Garrison . | . . . . . . Intercept . | . . . . . . Searches Triggered . | . . . . . . Construction Impeded 1 | . . . 1 . . Haulers Reinforced . | . . . . . . Active Scanning Responses . | . . . . . . Cargo Convoy Interrupts . | . . . . . . Stealth | -11 -10 -10 -9 -9 -9 --------- Run | Yrd Mat Min Mat Min Exi Distress Signals 7 | . 2 . 5 . . Communications Jammed . | . . . . . . Distress Signals . | . . . . . . Times Spotted 106 | . 28 7 61 . 10 Peak Tracking Total 14 | . 4 3 6 . 14 Tactical Retreats 3 | . 1 . 1 . 1 Traps | -11 -10 -10 -9 -9 -9 ------- Run | Yrd Mat Min Mat Min Exi Traps Triggered 3 | . 2 . 1 . . Indirectly . | . . . . . . Trap Hack Attempts . | . . . . . . Triggered . | . . . . . . Disarmed . | . . . . . . Reprogrammed . | . . . . . . Reused . | . . . . . . Traps Extracted . | . . . . . . Installed . | . . . . . . Triggered . | . . . . . . Machines | -11 -10 -10 -9 -9 -9 ---------- Run | Yrd Mat Min Mat Min Exi Machines Disabled 10 | . 2 . 5 . 3 Max in Single Turn 2 | . 1 . 2 . 1 Machines Repaired . | . . . . . . Machines Dismantled . | . . . . . . Machines Sabotaged . | . . . . . . Overloaded Fab Kills . | . . . . . . Hacking | -11 -10 -10 -9 -9 -9 --------- Run | Yrd Mat Min Mat Min Exi Machines Accessed 18 | . 8 . 10 . . Terminals 14 | . 7 . 7 . . Fabricators . | . . . . . . Repair Stations 3 | . 1 . 2 . . Recycling Units . | . . . . . . Scanalyzers 1 | . . . 1 . . Garrison Access . | . . . . . . Total Hacks 51 | . 15 . 36 . . Successful 21 | . 6 . 15 . . Failed 30 | . 9 . 21 . . Catastrophic 6 | . 3 . 3 . . Database Lockouts . | . . . . . . Manual 37 | . 13 . 24 . . Terminals 37 | . 13 . 24 . . Fabricators . | . . . . . . Repair Stations 12 | . 2 . 10 . . Recycling Units . | . . . . . . Scanalyzers 2 | . . . 2 . . Garrison Access . | . . . . . . Terminal Hacks 12 | . 4 . 8 . . Branch Access Points 1 | . . . 1 . . Terminal Index 2 | . 1 . 1 . . Unreport Threat 4 | . 1 . 3 . . Transport Status 3 | . 2 . 1 . . Recall Investigation 2 | . . . 2 . . Fabricator Hacks . | . . . . . . Repair Station Hacks 7 | . 2 . 5 . . Scan Component 4 | . 1 . 3 . . Repair 3 | . 1 . 2 . . Recycling Unit Hacks . | . . . . . . Scanalyzer 2 | . . . 2 . . Insert Component 1 | . . . 1 . . Analyze 1 | . . . 1 . . Garrison Access Hacks . | . . . . . . Unauthorized Hacks . | . . . . . . Terminals . | . . . . . . Fabricators . | . . . . . . Repair Stations . | . . . . . . Recycling Units . | . . . . . . Scanalyzers . | . . . . . . Garrison Access . | . . . . . . Data Cores Recovered 1 | . 1 . . . . Used 1 | . 1 . . . . Hacking Detections 17 | . 7 . 10 . . Full Trace Events 4 | . 1 . 3 . . Feedback Events 2 | . 1 . 1 . . Corruption 2 | . 1 . 1 . . Feedback Blocked . | . . . . . . Robot Schematics Acquired . | . . . . . . Robots Built . | . . . . . . Authchips . | . . . . . . Time . | . . . . . . Total Robot Build Rating . | . . . . . . Part Schematics Acquired 1 | . . . 1 . . Parts Built . | . . . . . . Authchips . | . . . . . . Time . | . . . . . . Total Part Build Rating . | . . . . . . Parts Repaired 3 | . 1 . 2 . . Time 78 | . 26 . 52 . . Parts Recycled . | . . . . . . Recycled Matter . | . . . . . . Retrieved Matter . | . . . . . . Retrieved Components . | . . . . . . Parts Scanalyzed 1 | . . . 1 . . Part Schematics Acquired 1 | . . . 1 . . Parts Damaged . | . . . . . . Bothacking | -11 -10 -10 -9 -9 -9 ------------ Run | Yrd Mat Min Mat Min Exi Used RIF Installer . | . . . . . . Robots Hacked . | . . . . . . Non-combat . | . . . . . . Combat . | . . . . . . Robot Hacks Applied . | . . . . . . Relay Couplers Released . | . . . . . . Fabnet Peak Effective % . | . . . . . . Robots Rewired . | . . . . . . Allies Hacked . | . . . . . . Hacks Repelled . | . . . . . . Allies | -11 -10 -10 -9 -9 -9 -------- Run | Yrd Mat Min Mat Min Exi Total Allies . | . . . . . . Largest Group . | . . . . . . Highest-Rated Group . | . . . . . . Highest-Rated Ally . | . . . . . . Total Orders . | . . . . . . Ally Attacks . | . . . . . . Total Damage . | . . . . . . Kills . | . . . . . . Allies Corrupted . | . . . . . . Allies Melted . | . . . . . . Intel | -11 -10 -10 -9 -9 -9 ------- Run | Yrd Mat Min Mat Min Exi Robot Analysis Total . | . . . . . . Derelict Logs Recovered 1 | . . 1 . . . Drone Launches . | . . . . . . Drone Recoveries . | . . . . . . Exploration | -11 -10 -10 -9 -9 -9 ------------- Run | Yrd Mat Min Mat Min Exi Turns Passed 8637 | 72 1786 3229 3054 133 363 Spaces Moved 3758 | 40 854 1165 1414 84 201 Core 3 | 2 . . 1 . . Treads 3755 | 38 854 1165 1413 84 201 Legs . | . . . . . . Wheels . | . . . . . . Hover . | . . . . . . Flight . | . . . . . . Fastest Speed 50 | 50 160 240 160 160 160 Average Speed 196 | 154 187 240 175 160 160 Slowest Speed 850 | 160 240 240 850 160 160 Overloaded Moves . | . . . . . . Propulsion Burnouts . | . . . . . . Robots Hopped . | . . . . . . Cave-ins Triggered . | . . . . . . Exploration Rate (%) 58 | 3 96 101 82 18 48 Regions Visited 5 Branch Regions 3 Pre-discovered Areas 2 | . . 2 . . . Known Exits Taken 3 | . . 1 1 1 . Unknown Exits Taken 2 | 1 1 . . . . Scrap Searched 1 | . . 1 . . . Spaces Dug 3 | . . 2 1 . . Terrain Destroyed 198 | . 59 22 117 . . Melee . | . . . . . . Projectile 3 | . . 2 1 . . AOE 195 | . 59 20 116 . . Terrain Rammed . | . . . . . . Walls Destroyed . | . . . . . . Machines Disabled . | . . . . . . Actions | -11 -10 -10 -9 -9 -9 --------- Run | Yrd Mat Min Mat Min Exi Total 4622 | 47 965 1556 1739 83 232 Wait 485 | . 34 362 89 . . Move 3753 | 39 853 1164 1413 83 201 Hop . | . . . . . . Pick Up 81 | 2 22 2 38 . 17 Fast Attach 16 | 6 3 1 4 . 2 Attach 25 | . 2 4 19 . . Detach 1 | . . 1 . . . Swap 23 | . 2 2 19 . . Drop 36 | . 7 2 22 . 5 Fire 200 | . 42 18 134 . 6 Melee . | . . . . . . Ram . | . . . . . . Kick . | . . . . . . Crush 1 | . . . 1 . . Escape Stasis . | . . . . . . Rewire 1 | . . . . . 1 Trap . | . . . . . . Miscellaneous . | . . . . . . Route ------- -11/Scrapyard -10/Materials (discovered 4 exits: *Mat x3 / [*Min]) -10/Mines (discovered 3 exits: *Mat x2 / *Sub) -9/Materials (discovered 4 exits: [*Mat x2] / *Min x2) -9/Mines -9/Exiles (discovered 1 exit: [*Min]) History --------- Turn | Location | Event 39 | -11/Scrapyard | Discovered new exit (range 14) 73 | -11/Scrapyard | Entered Materials 199 | -10/Materials | Discovered new exit (range 6) 306 | -10/Materials | Build established: Mutant 318 | -10/Materials | Discovered new exit (range 7) 637 | -10/Materials | Discovered new exit (range 8) 694 | -10/Materials | Repaired Grenade Launcher 1622 | -10/Materials | Discovered new exit (range 4) 1859 | -10/Materials | Entered Mines 2104 | -10/Mines | Found a damaged Exp. Sensor Array with a note attached 2109 | -10/Mines | Found Prototype Device 2109 | -10/Mines | Identified Exp. Sensor Array 2200 | -10/Mines | Found a hidden stash of uninstalled traps 2250 | -10/Mines | Discovered new exit (range 10) 2639 | -10/Mines | Discovered new exit (range 5) 3464 | -10/Mines | Learned location of Mines (-8) 3491 | -10/Mines | Discovered new exit (range 6) 3494 | -10/Mines | Learned location of Storage (-7) 3512 | -10/Mines | Identified exit to Materials 3754 | -10/Mines | Identified exit to Subcaves 5088 | -10/Mines | Entered Materials 5088 | -9/Materials | Evolved 2 slots: Propulsion x1, Utility x1 5113 | -9/Materials | Identified exit to Mines 6264 | -9/Materials | Discovered new exit (range 11) 6366 | -9/Materials | Build established: Scavenger-Mutant 6526 | -9/Materials | Core integrity fell below 50% 6565 | -9/Materials | Lost 6 parts (1p2n1u2w) 6675 | -9/Materials | Discovered new exit (range 10) 7027 | -9/Materials | Core integrity fell below 20% 7855 | -9/Materials | Repaired Lgt. Treads 7883 | -9/Materials | Repaired Lgt. Treads 8142 | -9/Materials | Entered Mines 8264 | -9/Mines | Deemed a non-threat by the Exiles lab entrance 8266 | -9/Mines | Discovered new exit (range 5) 8272 | -9/Mines | Identified exit to Exiles 8275 | -9/Mines | Entered Exiles 8311 | -9/Exiles | Discovered new exit (range 15) 8339 | -9/Exiles | Met 8R-AWN 8365 | -9/Exiles | Met EX-HEX 8424 | -9/Exiles | Met EX-DEC 8594 | -9/Exiles | Visited The Gauntlet 8610 | -9/Exiles | Attacked by the Exiles 8638 | -9/Exiles | Destroyed by as-40835 with Assembled Blade Last Messages --------------- 08501_ Extracted 10 matter. 08502_ Acquired Sml. Matter Pod. 08505_ Dropped Sml. Matter Pod. 08506_ Acquired Particle Gun. 08507_ Dropped Spread Laser. 08546_ System corrupted: Matter fused (-6). 08587_ System corrupted: Substantial component data lost. J5-HVA: Are you here to join us? Sorry but we don't have any workstations ready for assignment just yet. We're probably going to have to pack up and move anyway, seeing as the Mines are expanding a bit too close for comfort. DK-RAY: Welcome to The Gauntlet! If a prototype's bugged this is where we stop it. Unless we don't. But that rarely happens, honest! 08610_ System corrupted: FCS attempts to trigger Imp. Medium Laser. 08610_ System corrupted: Imp. Medium Laser misfires. 08610_ EXILES: Hostile robot within lab perimeter. Defensive protocols time, folks! 08610_ Machine disabled. 08633_ as-06212 destroyed. Map ----- +----------------------------------------------------+ | ?????????## " | | ??????????#" " "" "" | | ??????????#"""" ""## ##""" " " ""# | | ??????????#"" ""#### [######""" """# | | ??????????#" """"##??# !#????###""""## | | ??????????#""" """#??## ####???######? | | ??????????## ""##??#! "!#?????????? | | ???????????#"" """##???#" !#?????????? | | ???????????##""" ##????#" "#?????????? | | ????????????##"""" ##?????#! ""!"#?????????? | | ?????????????### #??????########?????????? | | ???????????????##### ##???????????????????????? | | ???????????????????## #????????????????????????? | | ????????????????????# #????????????????????????? | | ????????????????????# #????????????????????????? | | ????????????????????# #????????????????????????? | | ????????????????????# #????????????????????????? | | ????????????????????# #????????????????????????? | | ????????????????????# #????????????????????????? | | ????????????????????# #????????????????????????? | | ????????????????????# #????????????????????????? | | ????????????????????# a#????????????????????????? | | ????????????"?"###### ########?????????????????? | | ??????????"" """""" " """#?????????????????? | | ?????????"" c aa% "#"" ""#???????????? | | ??????? a@ " ""#???????????? | | ??????? a " " "#???????????? | | ???????? " """#???????????? | | ???????? z " #"" ""????????????? | | ?????????"" " """" """"#?""""????????????? | | ??????????##"""########"""######??#??????????????? | | ???????????" ????????"" "??????????????????????? | | ?????????????????????"" """?????????????????????? | | ????????????????????#"""""""?????????????????????? | | ?????????????????????"" """??????????????????????? | | ?????????????????????""""""??????????????????????? | | ??????????????????????##?????????????????????????? | | ?????????????????????????????????????????????????? | | ?????????????????????????????????????????????????? | | ?????????????????????????????????????????????????? | | ?????????????????????????????????????????????????? | | | | | | | | | | | | | | | | | | | +----------------------------------------------------+ Best States ------------- Heat Dissipation 38 Energy Generation 14 Energy Capacity 280 Matter Stores 300 Matter Capacity 300 Sight Range 16 Terrain Scan Density 10 Armor Coverage 150 Evasion (%) 40 Recoil Reduction 3 Offensive Hacking 10 Item Schematics ----------------- Hacking Suite | -9/Materials | Scanalyzed Robot Schematics ------------------ None Fabricated ------------ Nothing Alien Tech Used ----------------- None Achievements -------------- Dynamic Key Challenges ------------ None Game ------ Seed DefenseNuclearMount Manual? 0 Play Time 00:46:34 Cumulative 10.5 hours Start 2024.06.04 @ 19:03:31 End 2024.06.04 @ 19:51:32 Sessions 1 Manual Loads 0 Difficulty Rogue Special Mode None Game No. 14 Rogue 4 Adventurer 10 Explorer 0 Win Type - Total 0 Types 0/0/0/0/0/0/0/0/0 Lore% 19 Gallery% 24 Achievement% 21 Wizard Run 0 Options --------- Layout 0 ASCII 0 Keyboard 0 Movement Arrows Keybinds 0 Fullscreen 1 Font 24/Smallcaps Map View 76x50 Zoom Use 0% Tactical HUD 1 Map Filters NONE Filters NONE Steam 1 RUN: a254484c-c3f7-415f-a9f2-f35664d453c8